Cogmind - Beta 15 @@@ ROGUE MODE // 2025.08.27 @ 01:52:31 Player: SpeltIncorrectyl Result: Destroyed by G-67 Veteran with Field Laser Performance ------------- Evolutions (4) 2000 Regions Visited (9) 1800 Robots Destroyed (112) 560 Value Destroyed (3534) 3534 Prototype IDs (25) 500 Alien Tech Used (0) 0 Bonus (615) 615 TOTAL SCORE: 9009 Bonus ------- High Alert Combat Kills 315 Aligned with FarCom 300 Cogmind --------- Core Integrity 0/850 Matter 292/300 Energy 100/100 System Corruption 14% Temperature Cool (21) Movement Core (50) Location -6/Factory Parts ------- > --- POWER (1) -------- (None) > --- PROPULSION (5) --- (None) > --- UTILITY (6) ------ Coolant Injector Enhanced Optical Array > --- WEAPON (3) ------- (None) > --- INVENTORY (5) ---- Improved Gyrokinetic Inverter Stasis Canceller Rocket Launcher Peak State ------------ > --- POWER ------------ Antimatter Reactor > --- PROPULSION ------- Improved Hover Unit Backup Propulsion VII > --- UTILITY ---------- Improved Cooling System Coolant Injector Enhanced Optical Array Transmission Jammer Improved Cloaking Device Hacking Suite > --- WEAPON ----------- YOLO Cannon Improved Heavy Machine Gun > --- INVENTORY -------- Antimatter Reactor Improved Gyrokinetic Inverter Stasis Canceller Rocket Launcher [Rating: 71] Favorites ----------- Power Light Ion Engine Engine Light Ion Engine Power Core Micro Nuclear Core Reactor Antimatter Reactor Propulsion Aluminum Leg Treads Light Treads Leg Aluminum Leg Hover Unit Improved Hover Unit Utility Small Storage Unit Device Coolant Injector Storage Small Storage Unit Processor Improved Signal Interpreter Hackware Hacking Suite Protection Light Armor Plating Weapon Assault Rifle Energy Gun Small Laser Energy Cannon YOLO Cannon Ballistic Gun Assault Rifle Ballistic Cannon Assault Cannon Launcher Rocket Launcher Slashing Weapon Mining Claw Build | -11 -10 -10 -10 -9 -8 -7 -6 -6 -6 ------- Run | Yrd Mat Min Exi Min Mat Fac Fac Was Fac Slots Evolved 8 | . . . . . 4 2 2 . . Power . | . . . . . . . . . . Propulsion 3 | . . . . . 2 . 1 . . Utility 4 | . . . . . 2 1 1 . . Weapon 1 | . . . . . . 1 . . . Parts Attached 65 | 6 2 6 . . 22 13 10 3 3 Power 10 | 1 . 1 . . 3 2 . 2 1 Engine 3 | 1 . 1 . . 1 . . . . Core 5 | . . . . . 2 2 . 1 . Reactor 2 | . . . . . . . . 1 1 Propulsion 23 | 2 . 2 . . 10 4 5 . . Treads 7 | 2 . 1 . . 2 . 2 . . Leg 7 | . . 1 . . 6 . . . . Wheel . | . . . . . . . . . . Hover 9 | . . . . . 2 4 3 . . Flight . | . . . . . . . . . . Utility 17 | 1 . 1 . . 4 5 3 1 2 Device 6 | . . . . . 1 . 3 1 1 Storage 4 | 1 . 1 . . . 2 . . . Processor 2 | . . . . . 1 . . . 1 Hackware 1 | . . . . . . 1 . . . Protection 4 | . . . . . 2 2 . . . Artifact . | . . . . . . . . . . Weapon 15 | 2 2 2 . . 5 2 2 . . Energy Gun 1 | 1 . . . . . . . . . Energy Cannon 1 | . . . . . . . 1 . . Ballistic Gun 7 | 1 . 2 . . 2 1 1 . . Ballistic Cannon 4 | . 1 . . . 2 1 . . . Launcher 1 | . . . . . 1 . . . . Special Weapon . | . . . . . . . . . . Impact Weapon . | . . . . . . . . . . Slashing Weapon 1 | . 1 . . . . . . . . Piercing Weapon . | . . . . . . . . . . Special Melee Weapon . | . . . . . . . . . . Unidentified Prototypes 2 | . . . . . 1 . 1 . . Parts Lost 35 | . . 4 . . 8 2 11 . 10 Power 5 | . . 1 . . 1 . 1 . 2 Propulsion 15 | . . 2 . . 4 1 6 . 2 Utility 10 | . . . . . 1 1 4 . 4 Weapon 5 | . . 1 . . 2 . . . 2 Highest Loss Streak 8 | . . 3 . . 4 2 4 . 8 To Critical Strikes . | . . . . . . . . . . Average Backups 5 | 1 3 6 6 7 7 4 3 4 3 Power . | . 1 . . . . 1 1 . . Propulsion 2 | . 2 4 4 4 2 . . . 1 Utility . | . . . . . 1 1 . 1 1 Weapon 1 | . . 1 2 3 1 1 . 1 1 Tool/Special . | . . . . . . . . . . Unused Backups 19 | . . 1 . . 8 7 . 1 2 Power 3 | . . . . . 1 1 . 1 . Propulsion 7 | . . 1 . . 5 . . . 1 Utility 7 | . . . . . 1 5 . . 1 Weapon 2 | . . . . . 1 1 . . . Tool/Special . | . . . . . . . . . . Average Slot Usage (%) 78 | . 85 79 85 85 83 90 61 55 61 Engine 6 | . 14 10 14 14 4 . . . . Core 2 | . . . . . 4 6 5 1 . Treads 5 | . 28 6 . . 4 . 5 . . Leg 7 | . . 8 14 14 18 . . . . Hover 5 | . . . . . . 26 7 13 11 Device 6 | . . . . . 6 . 15 15 22 Storage 14 | . 14 24 28 28 18 6 1 . . Processor 2 | . . . . . 2 7 . . 5 Hackware 2 | . . . . . . 6 6 6 4 Protection 2 | . . . . . 5 10 4 . . Energy Cannon 1 | . . . . . . . 5 6 4 Ballistic Gun 13 | . 14 27 28 28 8 6 5 6 4 Ballistic Cannon 3 | . 12 . . . 5 7 . . . Launcher 1 | . . . . . 3 7 . . . Peak Build Rating 71 | 6 6 6 8 8 24 44 66 59 71 Average Rating 25 | 4 5 5 6 8 19 36 50 55 59 On Entrance 20 | . 6 6 6 8 8 23 44 47 59 Naked Turns . | . . . . . . . . . . Heaviest Build 43 | 11 13 21 21 21 38 36 38 42 43 Greatest Support 47 | 40 40 40 10 10 47 37 40 19 19 Greatest Overweight (x) 9 | . . 2 2 2 9 1 9 2 3 Average Overweight (x) . | . . 1 2 2 . . . 1 1 Largest Inventory Capacity 10 | 8 8 10 10 10 10 10 5 5 5 Average Capacity 7 | 7 8 9 10 10 10 5 5 5 5 Most Carried 10 | 5 8 8 8 9 10 10 5 5 5 Average Carried 5 | 1 3 6 6 8 8 5 3 4 3 Final Capacity 10 | 8 8 10 10 10 10 5 5 5 5 Final Carried 10 | 1 7 6 8 9 10 5 4 5 3 Class Distribution -------------------- 58% | Mutant 18% | Skirmisher 8% | Tank 7% | Scavenger-Mutant 6% | Infiltrator-Skirmisher Dominant Class ---------------- Mutant | -10/Materials Mutant | -10/Mines Mutant | -10/Exiles Mutant | -9/Mines Mutant | -8/Materials Tank | -7/Factory Skirmisher | -6/Factory Skirmisher | -6/Waste Infiltrator-Skirmisher | -6/Factory Resources | -11 -10 -10 -10 -9 -8 -7 -6 -6 -6 ----------- Run | Yrd Mat Min Exi Min Mat Fac Fac Was Fac Matter Collected 2492 | 213 259 171 . 1 961 381 294 188 24 Remotely . | . . . . . . . . . . Salvage Created 3356 | . 385 195 . . 1224 328 1200 . 24 Parts 149 | . 11 12 . . 65 28 32 . 1 Haulers Intercepted 4 | . 1 . . . 3 . . . . Recyclers Shooed 5 | . . . . . 1 2 2 . . Parts Field Recycled . | . . . . . . . . . . Retrieved Matter . | . . . . . . . . . . Parts Self-Destructed . | . . . . . . . . . . Prevented . | . . . . . . . . . . Kills | -11 -10 -10 -10 -9 -8 -7 -6 -6 -6 ------- Run | Yrd Mat Min Exi Min Mat Fac Fac Was Fac Combat Hostiles Destroyed 71 | . 7 7 . . 28 5 24 . . Guns 21 | . 3 6 . . 11 . 1 . . Cannons 19 | . 4 1 . . 6 2 6 . . AOE 28 | . . . . . 11 3 14 . . Classes Destroyed 15 | . 4 . . . 6 1 4 . . Worker 15 | . . . . . 5 4 5 . 1 Builder 4 | . . . . . 2 2 . . . Tunneler 2 | . . . . . 1 1 . . . Hauler 4 | . 1 . . . 3 . . . . Recycler 7 | . 2 . . . 2 1 2 . . Mechanic 1 | . . . . . . . 1 . . Operator 1 | . . . . . 1 . . . . Watcher 7 | . . . . . 3 3 1 . . Swarmer 21 | . 3 3 . . 8 3 4 . . Saboteur 1 | . . . . . . . 1 . . Grunt 34 | . 4 4 . . 13 . 13 . . Brawler 3 | . . . . . . . 3 . . Duelist 1 | . . . . . . . 1 . . Sentry 7 | . . . . . 7 . . . . Programmer 4 | . . . . . . 2 2 . . Best Kill Streak 11 | . 4 3 . . 11 6 10 . 1 Combat Bots Only 9 | . 3 3 . . 7 4 9 . . Max Kills in Single Turn 5 | . 1 1 . . 3 3 5 . 1 Gunslinging . | . . . . . . . . . . Exploded 4 | . . . . . 2 2 4 . . Melee . | . . . . . . . . . . Uniques/NPCs Destroyed . | . . . . . . . . . . Combat | -11 -10 -10 -10 -9 -8 -7 -6 -6 -6 -------- Run | Yrd Mat Min Exi Min Mat Fac Fac Was Fac Hostile Shots Fired 615 | . 40 50 . . 179 108 143 . 95 Missed 254 | . 15 13 . . 66 50 66 . 44 Hits 361 | . 25 37 . . 113 58 77 . 51 Melee 4 | . . . . . . . 4 . . Projectile 357 | . 25 37 . . 113 58 73 . 51 AOE 1 | . . . . . 1 . . . . Critical Strikes 8 | . 1 1 . . 4 2 . . . Actively Blocked 1 | . . . . . . 1 . . . Damage Taken 5405 | . 296 437 . . 1743 771 1199 . 959 Core 1457 | . 46 93 . . 349 114 232 . 623 Absorbed by Shields . | . . . . . . . . . . Redirected to Shielding 103 | . . . . . . 18 85 . . Core Remaining (%) 65 | 100 . . . 44 36 83 . . . Volleys Fired 259 | . 28 25 . . 109 30 64 . 3 Largest 3 | . 2 2 . . 2 3 2 . 1 Hottest 115 | . 50 50 . . 62 101 115 . 15 Shots Fired 447 | . 56 50 . . 192 72 72 2 3 Gun 274 | . 28 38 . . 115 30 59 1 3 Cannon 149 | . 28 12 . . 65 30 13 1 . Launcher 24 | . . . . . 12 12 . . . Special . | . . . . . . . . . . Kinetic 409 | . 56 50 . . 180 60 59 1 3 Thermal 14 | . . . . . . . 13 1 . Explosive 24 | . . . . . 12 12 . . . Electromagnetic . | . . . . . . . . . . Robot Hit Streak 9 | . 7 8 . . 9 5 9 . . Robot Miss Streak 8 | . 5 2 . . 8 8 3 . 3 Penetration Max . | . . . . . . . . . . Secondary Targets . | . . . . . . . . . . Shots Hit Robots 254 | . 37 31 . . 109 31 46 . . Core Hits 168 | . 17 12 . . 74 21 42 . 2 Critical Kills 3 | . . . . . . . 3 . . Critical Parts Destroyed . | . . . . . . . . . . Critical Strikes 5 | . 1 . . . . 1 3 . . Meltdown 3 | . . . . . . . 3 . . Blast 2 | . 1 . . . . 1 . . . Melee Attacks 1 | . 1 . . . . . . . . Impact . | . . . . . . . . . . Slashing 1 | . 1 . . . . . . . . Piercing . | . . . . . . . . . . Sneak Attacks . | . . . . . . . . . . Combat Hostiles . | . . . . . . . . . . Follow-up Attacks . | . . . . . . . . . . Damage Inflicted 10483 | . 582 410 . . 3594 1170 4703 . 24 Guns 2972 | . 264 299 . . 1210 223 976 . . Cannons 2988 | . 309 100 . . 844 511 1224 . . Explosions 4351 | . . . . . 1535 336 2480 . . Melee . | . . . . . . . . . . Ramming 172 | . 9 11 . . 5 100 23 . 24 Kinetic 4736 | . 573 399 . . 2054 734 976 . . Thermal 3630 | . . . . . . . 3630 . . Explosive 1945 | . . . . . 1535 336 74 . . Electromagnetic . | . . . . . . . . . . Impact . | . . . . . . . . . . Slashing . | . . . . . . . . . . Piercing . | . . . . . . . . . . Highest Corruption 14 | . . . . . . 4 3 3 14 Average Corruption 4 | . . . . . . 1 2 3 9 Corruption Purged . | . . . . . . . . . . Corruption Blocked . | . . . . . . . . . . Effects 58 | . . . . . . 14 8 10 26 Message Errors 15 | . . . . . . 6 2 4 3 Matter Fused 15 | . . . . . . 4 2 3 6 Heat Flow Errors 7 | . . . . . . 1 1 . 5 Energy Discharges 6 | . . . . . . . 2 . 4 Parts Fused 1 | . . . . . . . . . 1 Data Loss (minor) 7 | . . . . . . 2 . 1 4 Data Loss (major) 1 | . . . . . . . . . 1 Misfires 3 | . . . . . . . 1 2 . Misdirections 2 | . . . . . . . . . 2 Weapon Failures 1 | . . . . . . 1 . . . Overload Shots . | . . . . . . . . . . Overflow Damage 514 | . . . . . 97 11 406 . . Projectiles 181 | . . . . . 54 11 116 . . Explosions 333 | . . . . . 43 . 290 . . Melee . | . . . . . . . . . . Knockbacks 30 | . 3 2 . . 12 12 . . 1 Impact 3 | . 1 . . . . 1 . . 1 Kinetic 23 | . 2 2 . . 9 10 . . . Secondary 4 | . . . . . 3 1 . . . Self-Inflicted Damage 449 | . . . . . 76 116 246 . 11 Shots 11 | . . . . . 4 3 4 . . Rammed 15 | . 1 3 . . . 5 1 . 5 Targets Rammed 18 | . 1 5 . . 1 5 1 . 5 Kicked 3 | . . 2 . . 1 . . . . Crushed . | . . . . . . . . . . Highest Temperature 224 | . 39 37 . . 80 224 163 6 149 Average Temperature 34 | . 15 15 . . 20 50 44 4 66 Received Heat Transfer 1308 | . 141 225 . . 660 48 183 . 51 Siege Activations . | . . . . . . . . . . Martial Activations . | . . . . . . . . . . Shielding Activations . | . . . . . . . . . . Robots Disrupted . | . . . . . . . . . . Combat Hostiles . | . . . . . . . . . . Robots Corrupted . | . . . . . . . . . . Combat Hostiles . | . . . . . . . . . . Parts Fried . | . . . . . . . . . . Impact Corruptions . | . . . . . . . . . . Robots Melted 3 | . . . . . . . 3 . . Combat Hostiles 3 | . . . . . . . 3 . . Parts Melted 5 | . . . . . . . 5 . . Heat Transferred 3480 | . . . . . . . 3480 . . Parts Sabotaged . | . . . . . . . . . . Parts Stolen . | . . . . . . . . . . Parts Stripped . | . . . . . . . . . . Power Chain Reactions . | . . . . . . . . . . Alert | -11 -10 -10 -10 -9 -8 -7 -6 -6 -6 ------- Run | Yrd Mat Min Exi Min Mat Fac Fac Was Fac Maximum Alert Level 3 | . . . . . 1 1 3 1 . Low Security (%) 76 | 100 100 100 . 100 67 76 15 23 100 Level 1 16 | . . . . . 32 23 10 76 . Level 2 . | . . . . . . . 4 . . Level 3 6 | . . . . . . . 69 . . Level 4 . | . . . . . . . . . . Level 5 . | . . . . . . . . . . High Security . | . . . . . . . . . . Max Security . | . . . . . . . . . . Peak Influence 1057 | . 96 70 . . 381 270 1057 362 104 Initial 362 | . . . . . . 165 132 362 104 Average 129 | . 21 10 . . 142 97 642 255 16 Influence Increases 3228 | . 212 200 . . 943 482 1317 9 65 Destroy 0b10 Robot/C 1420 | . 140 140 . . 560 100 480 . . Destroy 0b10 Robot/NC 205 | . 15 . . . 85 55 45 . 5 Destroy Leader 342 | . 32 30 . . 162 36 82 . . Successful Hack 84 | . 8 . . . . 61 15 . . Disable Machine 585 | . 15 . . . 45 120 405 . . Anti-Garrison Action 150 | . . . . . . . 150 . . Destroy Structure 247 | . 2 . . . 61 95 80 9 . Partial Spotted 15 | . . . . . . . 15 . . Lose Combat Pursuer 180 | . . 30 . . 30 15 45 . 60 Influence Decreases 3186 | . 212 200 . . 577 578 550 897 172 Entered New Map 1059 | . . . . . . 201 138 675 45 Time Decay 1874 | . 212 160 . . 497 361 302 222 120 Lost Part 253 | . . 40 . . 80 16 110 . 7 Squads Dispatched 32 | . . . . . 9 11 8 . 4 Investigation 8 | . . . . . 1 4 3 . . Extermination 5 | . . . . . . 3 1 . 1 Reinforcement 7 | . . . . . 2 1 1 . 3 Assault 3 | . . . . . . . 3 . . Garrison 9 | . . . . . 6 3 . . . Intercept . | . . . . . . . . . . Searches Triggered . | . . . . . . . . . . Construction Impeded 2 | . . . . . 1 1 . . . Haulers Reinforced 1 | . . . . . . . . . 1 Active Scanning Responses . | . . . . . . . . . . Cargo Convoy Interrupts . | . . . . . . . . . . Stealth | -11 -10 -10 -10 -9 -8 -7 -6 -6 -6 --------- Run | Yrd Mat Min Exi Min Mat Fac Fac Was Fac Distress Signals 2 | . 1 . . . . . 1 . . Communications Jammed . | . . . . . . . . . . Distress Signals . | . . . . . . . . . . Times Spotted 119 | . 12 9 . . 44 12 28 . 14 Peak Tracking Total 9 | . 3 2 . . 7 4 9 . 9 Tactical Retreats 7 | . . 1 . . 2 1 1 . 2 Traps | -11 -10 -10 -10 -9 -8 -7 -6 -6 -6 ------- Run | Yrd Mat Min Exi Min Mat Fac Fac Was Fac Traps Triggered 8 | . . . . . 1 3 1 . 3 Indirectly . | . . . . . . . . . . Trap Hack Attempts . | . . . . . . . . . . Triggered . | . . . . . . . . . . Disarmed . | . . . . . . . . . . Reprogrammed . | . . . . . . . . . . Reused . | . . . . . . . . . . Traps Extracted . | . . . . . . . . . . Installed . | . . . . . . . . . . Triggered . | . . . . . . . . . . Machines | -11 -10 -10 -10 -9 -8 -7 -6 -6 -6 ---------- Run | Yrd Mat Min Exi Min Mat Fac Fac Was Fac Machines Disabled 40 | . 1 . . . 3 8 28 . . Max in Single Turn 15 | . 1 . . . 1 6 15 . . Garrison Access 1 | . . . . . . . 1 . . Machines Repaired . | . . . . . . . . . . Machines Dismantled . | . . . . . . . . . . Machines Sabotaged . | . . . . . . . . . . Overloaded Fab Kills . | . . . . . . . . . . Hacking | -11 -10 -10 -10 -9 -8 -7 -6 -6 -6 --------- Run | Yrd Mat Min Exi Min Mat Fac Fac Was Fac Machines Accessed 21 | . 2 . 1 . 5 7 4 . 2 Terminals 13 | . 2 . . . 5 4 1 . 1 Fabricators 3 | . . . . . . 1 2 . . Repair Stations . | . . . . . . . . . . Recycling Units 3 | . . . . . . 2 1 . . Scanalyzers 1 | . . . . . . . . . 1 Garrison Access . | . . . . . . . . . . Total Hacks 56 | . 6 . 1 . 9 25 10 . 5 Successful 27 | . 2 . 1 . 1 15 7 . 1 Failed 29 | . 4 . . . 8 10 3 . 4 Catastrophic 4 | . 1 . . . 3 . . . . Database Lockouts . | . . . . . . . . . . Manual 27 | . 6 . 1 . 9 9 1 . 1 Terminals 28 | . 6 . . . 9 10 2 . 1 Fabricators 8 | . . . . . . 3 5 . . Repair Stations . | . . . . . . . . . . Recycling Units 15 | . . . . . . 12 3 . . Scanalyzers 4 | . . . . . . . . . 4 Garrison Access . | . . . . . . . . . . Terminal Hacks 8 | . 2 . 1 . 1 3 1 . . Part Schematic 1 | . . . . . . 1 . . . Level Access Points 1 | . . . . . . 1 . . . Branch Access Points 1 | . 1 . . . . . . . . Terminal Index 3 | . 1 . . . 1 1 . . . Zone Layout 1 | . . . . . . . 1 . . Proto ID Catalog 1 | . . . 1 . . . . . . Fabricator Hacks 4 | . . . . . . . 4 . . Load Schematic 2 | . . . . . . . 2 . . Build 2 | . . . . . . . 2 . . Repair Station Hacks . | . . . . . . . . . . Recycling Unit Hacks 10 | . . . . . . 8 2 . . Recycle Component 1 | . . . . . . 1 . . . Process 3 | . . . . . . 2 1 . . Report Inventory 3 | . . . . . . 2 1 . . Retrieve Matter 3 | . . . . . . 3 . . . Scanalyzer 1 | . . . . . . . . . 1 Insert Component 1 | . . . . . . . . . 1 Garrison Access Hacks . | . . . . . . . . . . Unauthorized Hacks 4 | . . . . . . 4 . . . Terminals 4 | . . . . . . 4 . . . Botnet 4 | . . . . . . 4 . . . Fabricators . | . . . . . . . . . . Repair Stations . | . . . . . . . . . . Recycling Units . | . . . . . . . . . . Scanalyzers . | . . . . . . . . . . Garrison Access . | . . . . . . . . . . Data Cores Recovered . | . . . . . . . . . . Used . | . . . . . . . . . . Hacking Detections 19 | . 2 . . . 5 7 4 . 1 Full Trace Events 7 | . . . . . . 4 3 . . Feedback Events 2 | . . . . . . 2 . . . Corruption 2 | . . . . . . 2 . . . Feedback Blocked . | . . . . . . . . . . Robot Schematics Acquired . | . . . . . . . . . . Robots Built . | . . . . . . . . . . Authchips . | . . . . . . . . . . Time . | . . . . . . . . . . Total Robot Build Rating . | . . . . . . . . . . Part Schematics Acquired 1 | . . . . . . 1 . . . Parts Built . | . . . . . . . . . . Authchips . | . . . . . . . . . . Time 190 | . . . . . . . 190 . . Total Part Build Rating . | . . . . . . . . . . Parts Repaired . | . . . . . . . . . . Time . | . . . . . . . . . . Parts Recycled 1 | . . . . . . 1 . . . Recycled Matter 180 | . . . . . . 170 10 . . Retrieved Matter 170 | . . . . . . 170 . . . Retrieved Components . | . . . . . . . . . . Parts Scanalyzed 1 | . . . . . . . . . 1 Part Schematics Acquired . | . . . . . . . . . . Parts Damaged . | . . . . . . . . . . Bothacking | -11 -10 -10 -10 -9 -8 -7 -6 -6 -6 ------------ Run | Yrd Mat Min Exi Min Mat Fac Fac Was Fac Used RIF Installer . | . . . . . . . . . . Robots Hacked . | . . . . . . . . . . Non-combat . | . . . . . . . . . . Combat . | . . . . . . . . . . Robot Hacks Applied . | . . . . . . . . . . Relay Couplers Released 2 | . . . . . . . 2 . . Machine Destruction 2 | . . . . . . . 2 . . Fabnet Peak Effective % . | . . . . . . . . . . Robots Rewired . | . . . . . . . . . . Allies Hacked . | . . . . . . . . . . Hacks Repelled . | . . . . . . . . . . Allies | -11 -10 -10 -10 -9 -8 -7 -6 -6 -6 -------- Run | Yrd Mat Min Exi Min Mat Fac Fac Was Fac Total Allies . | . . . . . . . . . . Largest Group . | . . . . . . . . . . Highest-Rated Group . | . . . . . . . . . . Highest-Rated Ally . | . . . . . . . . . . Total Orders . | . . . . . . . . . . Ally Attacks . | . . . . . . . . . . Total Damage . | . . . . . . . . . . Kills . | . . . . . . . . . . Allies Corrupted . | . . . . . . . . . . Allies Melted . | . . . . . . . . . . Intel | -11 -10 -10 -10 -9 -8 -7 -6 -6 -6 ------- Run | Yrd Mat Min Exi Min Mat Fac Fac Was Fac Active Infowar (turns) 666 | . . . . . . . 1 . 665 Optics 665 | . . . . . . . . . 665 Cloaking 533 | . . . . . . . . . 533 Jamming 492 | . . . . . . . 1 . 491 Robot Analysis Total . | . . . . . . . . . . Derelict Logs Recovered 1 | . . . . 1 . . . . . Drone Launches . | . . . . . . . . . . Drone Recoveries . | . . . . . . . . . . Exploration | -11 -10 -10 -10 -9 -8 -7 -6 -6 -6 ------------- Run | Yrd Mat Min Exi Min Mat Fac Fac Was Fac Turns Passed 7852 | 58 966 951 563 651 1725 999 678 473 788 Spaces Moved 4815 | 42 534 383 217 251 878 1396 328 262 524 Core 188 | 19 . . . . 3 . 5 . 161 Treads 1069 | 23 534 151 . . 205 . 156 . . Legs 1382 | . . 232 217 251 670 12 . . . Wheels . | . . . . . . . . . . Hover 2176 | . . . . . . 1384 167 262 363 Flight . | . . . . . . . . . . Fastest Speed 42 | 50 160 160 260 260 120 45 42 136 50 Average Speed 140 | 110 160 223 260 260 151 55 142 177 144 Slowest Speed 500 | 160 160 260 260 260 500 123 500 206 320 Overloaded Moves . | . . . . . . . . . . Propulsion Burnouts . | . . . . . . . . . . Robots Hopped . | . . . . . . . . . . Potential Cave-ins . | . . . . . . . . . . Cave-ins Triggered . | . . . . . . . . . . Exploration Rate (%) 47 | 5 69 69 61 76 63 24 10 90 11 Regions Visited 9 Branch Regions 3 Pre-discovered Areas . | . . . . . . . . . . Known Exits Taken 3 | . 1 . . . 1 1 . . . Unknown Exits Taken 4 | 1 . 1 1 1 . . . . . Scrap Searched 2 | . . . . 2 . . . . . Spaces Dug 1 | . 1 . . . . . . . . Terrain Destroyed 274 | . 1 . . . 66 96 90 21 . Melee 1 | . 1 . . . . . . . . Projectile 23 | . . . . . 14 6 2 1 . AOE 250 | . . . . . 52 90 88 20 . Terrain Rammed . | . . . . . . . . . . Walls Destroyed . | . . . . . . . . . . Machines Disabled . | . . . . . . . . . . Actions | -11 -10 -10 -10 -9 -8 -7 -6 -6 -6 --------- Run | Yrd Mat Min Exi Min Mat Fac Fac Was Fac Total 5474 | 54 588 427 217 251 1100 1557 458 271 551 Wait 154 | . 12 . . . 43 43 40 . 16 Move 4807 | 41 533 382 216 250 877 1395 328 261 524 Hop . | . . . . . . . . . . Pick Up 74 | 7 8 6 1 1 28 11 9 3 . Fast Attach 18 | . . . . . 4 9 1 3 1 Attach 46 | 6 2 5 . . 16 5 9 1 2 Detach 2 | . . . . . 1 . 1 . . Swap 6 | . 1 1 . . 2 2 . . . Drop 50 | . 2 3 . . 19 18 5 3 . Fire 259 | . 28 25 . . 109 30 64 . 3 Melee 1 | . 1 . . . . . . . . Ram 11 | . . . . . . 5 1 . 5 Kick 3 | . . 2 . . 1 . . . . Crush 4 | . 1 3 . . . . . . . Escape Stasis 39 | . . . . . . 39 . . . Rewire . | . . . . . . . . . . Trap . | . . . . . . . . . . Miscellaneous . | . . . . . . . . . . Route ------- -11/Scrapyard -10/Materials (discovered 4 exits: [*Mat x3] / *Min) -10/Mines (discovered 3 exits: [*Mat x2] / *Exi) -10/Exiles -9/Mines -8/Materials -7/Factory (discovered 4 exits: *Fac x4) -6/Factory -6/Waste -6/Factory History --------- Turn | Location | Event 3 | -11/Scrapyard | Discovered new exit (range 16) 59 | -11/Scrapyard | Entered Materials 60 | -10/Materials | Met a group of wandering Federalists 107 | -10/Materials | Identified exit to Mines 156 | -10/Materials | Discovered new exit (range 16) 301 | -10/Materials | Build established: Mutant 410 | -10/Materials | Discovered new exit (range 16) 710 | -10/Materials | Discovered new exit (range 14) 1025 | -10/Materials | Entered Mines 1070 | -10/Mines | Core integrity fell below 50% 1084 | -10/Mines | Met a Derelict bent on vengeance 1098 | -10/Mines | Lost 3 parts (1p1n1w) 1200 | -10/Mines | Discovered new exit (range 11) 1693 | -10/Mines | Found a Scrap Suit stashed away for nefarious purposes 1804 | -10/Mines | Discovered new exit (range 16) 1963 | -10/Mines | Deemed a non-threat by the Exiles lab entrance 1966 | -10/Mines | Discovered new exit (range 5) 1976 | -10/Mines | Entered Exiles 2041 | -10/Exiles | Met 8R-AWN 2083 | -10/Exiles | Met EX-HEX 2161 | -10/Exiles | Met EX-BIN 2200 | -10/Exiles | Aligned with FarCom system 2203 | -10/Exiles | Given EX-Vault access code 2268 | -10/Exiles | Opened EX-Vault 2283 | -10/Exiles | Found YOLO Cannon 2336 | -10/Exiles | Warned to stay clear of 0b10 Research branches 2417 | -10/Exiles | Met EX-DEC 2508 | -10/Exiles | Discovered new exit (range 14) 2539 | -10/Exiles | Left Exiles lab with YOLO Cannon 2539 | -10/Exiles | Entered Mines 2653 | -9/Mines | Received a Rocket Launcher from a helpful Derelict 2868 | -9/Mines | Learned Materials terminal intel 3175 | -9/Mines | Discovered new exit (range 7) 3190 | -9/Mines | Entered Materials 3190 | -8/Materials | Evolved 4 slots: Propulsion x2, Utility x2 3191 | -8/Materials | Loaded intel: 12 terminal locations 4212 | -8/Materials | Core integrity fell below 50% 4244 | -8/Materials | Lost 4 parts (2n1u1w) 4386 | -8/Materials | Destroyed 7 combat bots 4770 | -8/Materials | Build established: Scavenger-Mutant 4890 | -8/Materials | Discovered new exit (range 14) 4905 | -8/Materials | Identified exit to Factory 4915 | -8/Materials | Entered Factory 4915 | -7/Factory | Evolved 2 slots: Utility x1, Weapon x1 5575 | -7/Factory | Build established: Tank 5646 | -7/Factory | Garrison activated, responded to threat 5876 | -7/Factory | Identified exit to Factory 5914 | -7/Factory | Entered another Factory area 5914 | -6/Factory | Evolved 2 slots: Propulsion x1, Utility x1 5929 | -6/Factory | Discovered new exit (range 7) 6052 | -6/Factory | Lost 4 parts (4n) 6090 | -6/Factory | Garrison activated, responded to threat 6158 | -6/Factory | Lost 4 parts (1n3u) 6166 | -6/Factory | Destroyed 9 combat bots 6264 | -6/Factory | First assault squad dispatched 6407 | -6/Factory | Build established: Skirmisher 6592 | -6/Factory | Sucked down chute 6592 | -6/Factory | Entered Waste 6592 | -6/Waste | The area was eerily silent 7038 | -6/Waste | Discovered new exit (range 12) 7065 | -6/Waste | Entered Factory 7368 | -6/Factory | System corruption reached 10% 7459 | -6/Factory | Build established: Infiltrator-Skirmisher 7746 | -6/Factory | Lost 8 parts (2p1n3u2w) 7765 | -6/Factory | Core integrity fell below 50% 7809 | -6/Factory | Core integrity fell below 20% 7853 | -6/Factory | Destroyed by G-67 Veteran with Field Laser Last Messages --------------- ALERT: Suspicious intruders detected, dispatching Cutter reinforcements to area. Slug penetrates Wall. M-28 Smith repairs H-66 Slayer. Penetrated by Slug. Imp. Cloaking Device destroyed. Slug penetrates Wall. Slammed into K-01 Serf. K-01 Serf destroyed. Destabilizing: System interference. Enh. Optical Array temporarily disabled. Acquired 24 matter. Slammed into A-15 Conveyor. A-15 Conveyor calls for reinforcements. ALERT: Hostile activity reported, dispatching reinforcements to area. Slammed into A-15 Conveyor. R-10 Processor collects Sml. Matter Pod. Slammed into A-15 Conveyor. FTYMSMIXHR9P&=DZXFOP Map ----- +----------------------------------------------------+ | #?? #?????# "" "" ###########?# "" | | #? #?????# "" "" #???????????# "" | | #? #?????# """ """ #???????????# ? | | # #?????# """ """ #???????????#??? | | # #?????# """ """ #??????????????? | | / #?????# #??????????????? | | # #?????# [ #??????????????? | | # #?????# #??????????????? | | #? #?????####g##############?????????? | | ################?????????g?????? #???###+### | | #?????????????????? ??????"" % #???# | | #?????????????????#g????#?"" #???# | | #?????????????????# ????# "" * #???# | | #????????????????## ###?# "Y #???# | | #????????????????# #?# "" ] #???# | | #????????????????# #?# "" #???# | | #????????????????+ #?? "" ! #???# | | #????????????????# #???? ?##### | | #???????????????## #######+####T ## | | #???????????????# p | | #???????????????# | | #???????????????# | | #####+################# | | ##### | | # | | # ^ @ | | + | | ############################################## | | #????????????????????????????????????????????? | | #????????????????????????????????????????????? | | #####????????????????????????????????????????????? | | | | | | | | | | | | | | | | | | | | | | | | | | | | | | | | | | | | | | | +----------------------------------------------------+ Best States ------------- Heat Dissipation 37 Coolant Potential 65 Energy Generation 21 Energy Capacity 325 Matter Stores 300 Matter Capacity 400 Sight Range 22 Terrain Scan Density 10 Jamming Range 12 Cloak Strength 3 Armor Coverage 300 Weapon Shielding 66 Evasion (%) 56 Recoil Reduction 2 Offensive Hacking 10 Item Schematics ----------------- Gravmag Array | -7/Factory | Hacked Robot Schematics ------------------ None Fabricated ------------ Nothing Repaired ---------- Nothing Alien Tech Used ----------------- None Achievements -------------- It Was An Accident, I Swear Oh No You Don't! Challenges ------------ None Game ------ Seed PhysicsFrostMediator Manual? 0 Play Time 01:11:52 Cumulative 38.0 hours Start 2025.08.27 @ 00:34:19 End 2025.08.27 @ 01:52:31 Sessions 5 Manual Loads 0 Difficulty Rogue Special Mode None Game No. 49 Rogue 39 Adventurer 10 Explorer 0 Win Type - Total 0 Types 0/0/0/0/0/0/0/0/0/0 Lore% 10 Gallery% 24 Achievement% 29 Wizard Run 0 Options --------- Layout 1 ASCII 0 Keyboard 0 Movement Arrows Keybinds 0 Fullscreen 1 Font 24/Smallcaps Map View 50x35 Zoom Use 0% Tactical HUD 0 Map Filters NONE Filters NONE Steam 1 RUN: 0d659bcc-c52f-4894-92af-cb1db3f793a9